Workbook

Sheet entry sheet
A1: HELLO KITTY BUDGET | I1: Brought to you by | J1: Excel Made Easy
E2: =TODAY() -> 2014-10-31
A3: Entry | B3: Date | C3: MonthNb | D3: Month | E3: Category | F3: Name | G3: Incomes | H3: Expense | I3: Comment | J3: Monthly Total | K3: Yearly Total
B4: 2014-01-01 | C4: =IF(Table267895[[#This Row],[Date]]="","",MONTH(B4)) -> 1 | D4: =IF($C4="","",TEXT(DATE(2000,C4,1),"mmm")) -> Jan | E4: Bank | F4: Bank 1 jan | J4: =-H4+G4 -> 0 | K4: 1000
A5: 1 | B5: 2014-01-11 | C5: =IF(Table267895[[#This Row],[Date]]="","",MONTH(B5)) -> 1 | D5: =IF($C5="","",TEXT(DATE(2000,C5,1),"mmm")) -> Jan | E5: Food | F5: Milk | H5: 10 | J5: -10 | K5: =-Table267895[[#This Row],[Expense]]+Table267895[[#This Row],[Incomes]]+K4 -> 990
A6: =A5+1 -> 2 | B6: 2014-01-12 | C6: =IF(Table267895[[#This Row],[Date]]="","",MONTH(B6)) -> 1 | D6: =IF($C6="","",TEXT(DATE(2000,C6,1),"mmm")) -> Jan | E6: Food | F6: Bread | J6: 0 | K6: =-Table267895[[#This Row],[Expense]]+Table267895[[#This Row],[Incomes]]+K5 -> 990
A7: 3 | B7: 2014-01-12 | C7: =IF(Table267895[[#This Row],[Date]]="","",MONTH(B7)) -> 1 | D7: Jan | E7: Food | F7: Various | J7: 0 | K7: =-Table267895[[#This Row],[Expense]]+Table267895[[#This Row],[Incomes]]+K6 -> 990
A8: 4 | B8: 2014-01-15 | C8: =IF(Table267895[[#This Row],[Date]]="","",MONTH(B8)) -> 1 | D8: Jan | E8: Insurance | F8: Car Insurance | J8: 0 | K8: =-Table267895[[#This Row],[Expense]]+Table267895[[#This Row],[Incomes]]+K7 -> 990
A9: 5 | B9: 2014-04-10 | C9: =IF(Table267895[[#This Row],[Date]]="","",MONTH(B9)) -> 4 | D9: Apr | E9: House | F9: Rent | J9: 0 | K9: =-Table267895[[#This Row],[Expense]]+Table267895[[#This Row],[Incomes]]+K8 -> 990
A10: 6 | B10: 2014-04-11 | C10: =IF(Table267895[[#This Row],[Date]]="","",MONTH(B10)) -> 4 | D10: Apr | E10: Sport | F10: Bicycle | J10: 0 | K10: =-Table267895[[#This Row],[Expense]]+Table267895[[#This Row],[Incomes]]+K9 -> 990
A11: 7 | B11: 2014-10-31 | C11: =IF(Table267895[[#This Row],[Date]]="","",MONTH(B11)) -> 10 | D11: Oct | E11: Sport | F11: Bicycle | J11: 0 | K11: =-Table267895[[#This Row],[Expense]]+Table267895[[#This Row],[Incomes]]+K10 -> 990
A12: =A11+1 -> 8 | B12: 2014-04-12 | C12: =IF(Table267895[[#This Row],[Date]]="","",MONTH(B12)) -> 4 | D12: Apr | E12: Entertainment | F12: Restaurant | J12: 0 | K12: =-Table267895[[#This Row],[Expense]]+Table267895[[#This Row],[Incomes]]+K11 -> 990
A13: =A12+1 -> 9 | B13: 2014-10-31 | C13: =IF(Table267895[[#This Row],[Date]]="","",MONTH(B13)) -> 10 | D13: Oct | E13: TEST | F13: TEST | G13: 14 | H13: 12 | J13: 2 | K13: =-Table267895[[#This Row],[Expense]]+Table267895[[#This Row],[Incomes]]+K12 -> 992
A14: =A13+1 -> 10 | B14: 2014-10-30 | C14: =IF(Table267895[[#This Row],[Date]]="","",MONTH(B14)) -> 10 | D14: Oct | E14: Food | F14: Bread | J14: 0 | K14: =-Table267895[[#This Row],[Expense]]+Table267895[[#This Row],[Incomes]]+K13 -> 992
A15: 11 | C15: =IF(Table267895[[#This Row],[Date]]="","",MONTH(B15)) ->  | E15: =IF(Table267895[[#This Row],[Date]]="","enter data","") -> enter data | J15: 0 | K15: =-Table267895[[#This Row],[Expense]]+Table267895[[#This Row],[Incomes]]+K14 -> 992
A16: 12 | C16: =IF(Table267895[[#This Row],[Date]]="","",MONTH(B16)) ->  | E16: =IF(Table267895[[#This Row],[Date]]="","enter data","") -> enter data | J16: 0 | K16: =-Table267895[[#This Row],[Expense]]+Table267895[[#This Row],[Incomes]]+K15 -> 992
A17: 13 | C17: =IF(Table267895[[#This Row],[Date]]="","",MONTH(B17)) ->  | E17: =IF(Table267895[[#This Row],[Date]]="","enter data","") -> enter data | J17: 0 | K17: =-Table267895[[#This Row],[Expense]]+Table267895[[#This Row],[Incomes]]+K16 -> 992
A18: 14 | C18: =IF(Table267895[[#This Row],[Date]]="","",MONTH(B18)) ->  | E18: =IF(Table267895[[#This Row],[Date]]="","enter data","") -> enter data | J18: 0 | K18: =-Table267895[[#This Row],[Expense]]+Table267895[[#This Row],[Incomes]]+K17 -> 992
A19: 15 | C19: =IF(Table267895[[#This Row],[Date]]="","",MONTH(B19)) ->  | E19: =IF(Table267895[[#This Row],[Date]]="","enter data","") -> enter data | J19: 0 | K19: =-Table267895[[#This Row],[Expense]]+Table267895[[#This Row],[Incomes]]+K18 -> 992
A20: 16 | C20: =IF(Table267895[[#This Row],[Date]]="","",MONTH(B20)) ->  | E20: =IF(Table267895[[#This Row],[Date]]="","enter data","") -> enter data | J20: 0 | K20: =-Table267895[[#This Row],[Expense]]+Table267895[[#This Row],[Incomes]]+K19 -> 992
A21: 17 | C21: =IF(Table267895[[#This Row],[Date]]="","",MONTH(B21)) ->  | E21: =IF(Table267895[[#This Row],[Date]]="","enter data","") -> enter data | J21: 0 | K21: =-Table267895[[#This Row],[Expense]]+Table267895[[#This Row],[Incomes]]+K20 -> 992
A22: 18 | C22: =IF(Table267895[[#This Row],[Date]]="","",MONTH(B22)) ->  | E22: =IF(Table267895[[#This Row],[Date]]="","enter data","") -> enter data | J22: 0 | K22: =-Table267895[[#This Row],[Expense]]+Table267895[[#This Row],[Incomes]]+K21 -> 992
A23: 19 | C23: =IF(Table267895[[#This Row],[Date]]="","",MONTH(B23)) ->  | E23: =IF(Table267895[[#This Row],[Date]]="","enter data","") -> enter data | J23: 0 | K23: =-Table267895[[#This Row],[Expense]]+Table267895[[#This Row],[Incomes]]+K22 -> 992
A24: 20 | C24: =IF(Table267895[[#This Row],[Date]]="","",MONTH(B24)) ->  | E24: =IF(Table267895[[#This Row],[Date]]="","enter data","") -> enter data | J24: 0 | K24: =-Table267895[[#This Row],[Expense]]+Table267895[[#This Row],[Incomes]]+K23 -> 992
A25: 21 | C25: =IF(Table267895[[#This Row],[Date]]="","",MONTH(B25)) ->  | E25: =IF(Table267895[[#This Row],[Date]]="","enter data","") -> enter data | J25: 0 | K25: =-Table267895[[#This Row],[Expense]]+Table267895[[#This Row],[Incomes]]+K24 -> 992
A26: 22 | C26: =IF(Table267895[[#This Row],[Date]]="","",MONTH(B26)) ->  | E26: =IF(Table267895[[#This Row],[Date]]="","enter data","") -> enter data | J26: 0 | K26: =-Table267895[[#This Row],[Expense]]+Table267895[[#This Row],[Incomes]]+K25 -> 992
A27: 23 | C27: =IF(Table267895[[#This Row],[Date]]="","",MONTH(B27)) ->  | E27: =IF(Table267895[[#This Row],[Date]]="","enter data","") -> enter data | J27: 0 | K27: =-Table267895[[#This Row],[Expense]]+Table267895[[#This Row],[Incomes]]+K26 -> 992
A28: 24 | C28: =IF(Table267895[[#This Row],[Date]]="","",MONTH(B28)) ->  | E28: =IF(Table267895[[#This Row],[Date]]="","enter data","") -> enter data | J28: 0 | K28: =-Table267895[[#This Row],[Expense]]+Table267895[[#This Row],[Incomes]]+K27 -> 992
A29: 25 | C29: =IF(Table267895[[#This Row],[Date]]="","",MONTH(B29)) ->  | E29: =IF(Table267895[[#This Row],[Date]]="","enter data","") -> enter data | J29: 0 | K29: =-Table267895[[#This Row],[Expense]]+Table267895[[#This Row],[Incomes]]+K28 -> 992
A30: 26 | C30: =IF(Table267895[[#This Row],[Date]]="","",MONTH(B30)) ->  | E30: =IF(Table267895[[#This Row],[Date]]="","enter data","") -> enter data | J30: 0 | K30: =-Table267895[[#This Row],[Expense]]+Table267895[[#This Row],[Incomes]]+K29 -> 992
A31: 27 | C31: =IF(Table267895[[#This Row],[Date]]="","",MONTH(B31)) ->  | E31: =IF(Table267895[[#This Row],[Date]]="","enter data","") -> enter data | J31: 0 | K31: =-Table267895[[#This Row],[Expense]]+Table267895[[#This Row],[Incomes]]+K30 -> 992
A32: 28 | C32: =IF(Table267895[[#This Row],[Date]]="","",MONTH(B32)) ->  | E32: =IF(Table267895[[#This Row],[Date]]="","enter data","") -> enter data | J32: 0 | K32: =-Table267895[[#This Row],[Expense]]+Table267895[[#This Row],[Incomes]]+K31 -> 992
A33: 29 | C33: =IF(Table267895[[#This Row],[Date]]="","",MONTH(B33)) ->  | E33: =IF(Table267895[[#This Row],[Date]]="","enter data","") -> enter data | J33: 0 | K33: =-Table267895[[#This Row],[Expense]]+Table267895[[#This Row],[Incomes]]+K32 -> 992
A34: 30 | C34: =IF(Table267895[[#This Row],[Date]]="","",MONTH(B34)) ->  | E34: =IF(Table267895[[#This Row],[Date]]="","enter data","") -> enter data | J34: 0 | K34: =-Table267895[[#This Row],[Expense]]+Table267895[[#This Row],[Incomes]]+K33 -> 992
A35: 31 | C35: =IF(Table267895[[#This Row],[Date]]="","",MONTH(B35)) ->  | E35: =IF(Table267895[[#This Row],[Date]]="","enter data","") -> enter data | J35: 0 | K35: =-Table267895[[#This Row],[Expense]]+Table267895[[#This Row],[Incomes]]+K34 -> 992
A36: 32 | C36: =IF(Table267895[[#This Row],[Date]]="","",MONTH(B36)) ->  | E36: =IF(Table267895[[#This Row],[Date]]="","enter data","") -> enter data | J36: 0 | K36: =-Table267895[[#This Row],[Expense]]+Table267895[[#This Row],[Incomes]]+K35 -> 992
A37: 33 | C37: =IF(Table267895[[#This Row],[Date]]="","",MONTH(B37)) ->  | E37: =IF(Table267895[[#This Row],[Date]]="","enter data","") -> enter data | J37: 0 | K37: =-Table267895[[#This Row],[Expense]]+Table267895[[#This Row],[Incomes]]+K36 -> 992
A38: 34 | C38: =IF(Table267895[[#This Row],[Date]]="","",MONTH(B38)) ->  | E38: =IF(Table267895[[#This Row],[Date]]="","enter data","") -> enter data | J38: 0 | K38: =-Table267895[[#This Row],[Expense]]+Table267895[[#This Row],[Incomes]]+K37 -> 992
A39: 35 | C39: =IF(Table267895[[#This Row],[Date]]="","",MONTH(B39)) ->  | E39: =IF(Table267895[[#This Row],[Date]]="","enter data","") -> enter data | J39: 0 | K39: =-Table267895[[#This Row],[Expense]]+Table267895[[#This Row],[Incomes]]+K38 -> 992
A40: 36 | C40: =IF(Table267895[[#This Row],[Date]]="","",MONTH(B40)) ->  | E40: =IF(Table267895[[#This Row],[Date]]="","enter data","") -> enter data | J40: 0 | K40: =-Table267895[[#This Row],[Expense]]+Table267895[[#This Row],[Incomes]]+K39 -> 992
A41: 37 | C41: =IF(Table267895[[#This Row],[Date]]="","",MONTH(B41)) ->  | E41: =IF(Table267895[[#This Row],[Date]]="","enter data","") -> enter data | J41: 0 | K41: =-Table267895[[#This Row],[Expense]]+Table267895[[#This Row],[Incomes]]+K40 -> 992
A42: 38 | C42: =IF(Table267895[[#This Row],[Date]]="","",MONTH(B42)) ->  | E42: =IF(Table267895[[#This Row],[Date]]="","enter data","") -> enter data | J42: 0 | K42: =-Table267895[[#This Row],[Expense]]+Table267895[[#This Row],[Incomes]]+K41 -> 992
A43: 39 | C43: =IF(Table267895[[#This Row],[Date]]="","",MONTH(B43)) ->  | E43: =IF(Table267895[[#This Row],[Date]]="","enter data","") -> enter data | J43: 0 | K43: =-Table267895[[#This Row],[Expense]]+Table267895[[#This Row],[Incomes]]+K42 -> 992
A44: 40 | C44: =IF(Table267895[[#This Row],[Date]]="","",MONTH(B44)) ->  | E44: =IF(Table267895[[#This Row],[Date]]="","enter data","") -> enter data | J44: 0 | K44: =-Table267895[[#This Row],[Expense]]+Table267895[[#This Row],[Incomes]]+K43 -> 992
A45: 41 | C45: =IF(Table267895[[#This Row],[Date]]="","",MONTH(B45)) ->  | D45: =IF($C45="","",TEXT(DATE(2000,C45,1),"mmm")) ->  | E45: =IF(Table267895[[#This Row],[Date]]="","enter data","") -> enter data | J45: 0 | K45: =-Table267895[[#This Row],[Expense]]+Table267895[[#This Row],[Incomes]]+K44 -> 992
A46: 42 | C46: =IF(Table267895[[#This Row],[Date]]="","",MONTH(B46)) ->  | E46: =IF(Table267895[[#This Row],[Date]]="","enter data","") -> enter data | J46: 0 | K46: =-Table267895[[#This Row],[Expense]]+Table267895[[#This Row],[Incomes]]+K45 -> 992
A47: 43 | C47: =IF(Table267895[[#This Row],[Date]]="","",MONTH(B47)) ->  | E47: =IF(Table267895[[#This Row],[Date]]="","enter data","") -> enter data | J47: 0 | K47: =-Table267895[[#This Row],[Expense]]+Table267895[[#This Row],[Incomes]]+K46 -> 992
A48: 44 | C48: =IF(Table267895[[#This Row],[Date]]="","",MONTH(B48)) ->  | E48: =IF(Table267895[[#This Row],[Date]]="","enter data","") -> enter data | J48: 0 | K48: =-Table267895[[#This Row],[Expense]]+Table267895[[#This Row],[Incomes]]+K47 -> 992
A49: 45 | C49: =IF(Table267895[[#This Row],[Date]]="","",MONTH(B49)) ->  | E49: =IF(Table267895[[#This Row],[Date]]="","enter data","") -> enter data | J49: =-H49+G49 -> 0 | K49: =-Table267895[[#This Row],[Expense]]+Table267895[[#This Row],[Incomes]]+K48 -> 992
A50: 46 | C50: =IF(Table267895[[#This Row],[Date]]="","",MONTH(B50)) ->  | E50: =IF(Table267895[[#This Row],[Date]]="","enter data","") -> enter data | J50: 0 | K50: =-Table267895[[#This Row],[Expense]]+Table267895[[#This Row],[Incomes]]+K49 -> 992
A51: 47 | C51: =IF(Table267895[[#This Row],[Date]]="","",MONTH(B51)) ->  | E51: =IF(Table267895[[#This Row],[Date]]="","enter data","") -> enter data | J51: 0 | K51: =-Table267895[[#This Row],[Expense]]+Table267895[[#This Row],[Incomes]]+K50 -> 992
A52: 48 | C52: =IF(Table267895[[#This Row],[Date]]="","",MONTH(B52)) ->  | E52: =IF(Table267895[[#This Row],[Date]]="","enter data","") -> enter data | J52: 0 | K52: =-Table267895[[#This Row],[Expense]]+Table267895[[#This Row],[Incomes]]+K51 -> 992
A53: 49 | C53: =IF(Table267895[[#This Row],[Date]]="","",MONTH(B53)) ->  | E53: =IF(Table267895[[#This Row],[Date]]="","enter data","") -> enter data | J53: 0 | K53: =-Table267895[[#This Row],[Expense]]+Table267895[[#This Row],[Incomes]]+K52 -> 992
A54: 50 | C54: =IF(Table267895[[#This Row],[Date]]="","",MONTH(B54)) ->  | E54: =IF(Table267895[[#This Row],[Date]]="","enter data","") -> enter data | J54: 0 | K54: =-Table267895[[#This Row],[Expense]]+Table267895[[#This Row],[Incomes]]+K53 -> 992
A55: 51 | C55: =IF(Table267895[[#This Row],[Date]]="","",MONTH(B55)) ->  | E55: =IF(Table267895[[#This Row],[Date]]="","enter data","") -> enter data | J55: 0 | K55: =-Table267895[[#This Row],[Expense]]+Table267895[[#This Row],[Incomes]]+K54 -> 992
A56: 52 | C56: =IF(Table267895[[#This Row],[Date]]="","",MONTH(B56)) ->  | E56: =IF(Table267895[[#This Row],[Date]]="","enter data","") -> enter data | J56: 0 | K56: =-Table267895[[#This Row],[Expense]]+Table267895[[#This Row],[Incomes]]+K55 -> 992
A57: 53 | C57: =IF(Table267895[[#This Row],[Date]]="","",MONTH(B57)) ->  | E57: =IF(Table267895[[#This Row],[Date]]="","enter data","") -> enter data | J57: 0 | K57: =-Table267895[[#This Row],[Expense]]+Table267895[[#This Row],[Incomes]]+K56 -> 992
A58: 54 | C58: =IF(Table267895[[#This Row],[Date]]="","",MONTH(B58)) ->  | E58: =IF(Table267895[[#This Row],[Date]]="","enter data","") -> enter data | J58: 0 | K58: =-Table267895[[#This Row],[Expense]]+Table267895[[#This Row],[Incomes]]+K57 -> 992
A59: 55 | C59: =IF(Table267895[[#This Row],[Date]]="","",MONTH(B59)) ->  | E59: =IF(Table267895[[#This Row],[Date]]="","enter data","") -> enter data | J59: 0 | K59: =-Table267895[[#This Row],[Expense]]+Table267895[[#This Row],[Incomes]]+K58 -> 992
A60: 56 | C60: =IF(Table267895[[#This Row],[Date]]="","",MONTH(B60)) ->  | E60: =IF(Table267895[[#This Row],[Date]]="","enter data","") -> enter data | J60: 0 | K60: =-Table267895[[#This Row],[Expense]]+Table267895[[#This Row],[Incomes]]+K59 -> 992
A61: 57 | C61: =IF(Table267895[[#This Row],[Date]]="","",MONTH(B61)) ->  | E61: =IF(Table267895[[#This Row],[Date]]="","enter data","") -> enter data | J61: 0 | K61: =-Table267895[[#This Row],[Expense]]+Table267895[[#This Row],[Incomes]]+K60 -> 992
A62: 58 | C62: =IF(Table267895[[#This Row],[Date]]="","",MONTH(B62)) ->  | E62: =IF(Table267895[[#This Row],[Date]]="","enter data","") -> enter data | J62: 0 | K62: =-Table267895[[#This Row],[Expense]]+Table267895[[#This Row],[Incomes]]+K61 -> 992
A63: 59 | C63: =IF(Table267895[[#This Row],[Date]]="","",MONTH(B63)) ->  | E63: =IF(Table267895[[#This Row],[Date]]="","enter data","") -> enter data | J63: 0 | K63: =-Table267895[[#This Row],[Expense]]+Table267895[[#This Row],[Incomes]]+K62 -> 992
A64: 60 | C64: =IF(Table267895[[#This Row],[Date]]="","",MONTH(B64)) ->  | E64: =IF(Table267895[[#This Row],[Date]]="","enter data","") -> enter data | J64: 0 | K64: =-Table267895[[#This Row],[Expense]]+Table267895[[#This Row],[Incomes]]+K63 -> 992
A65: 61 | C65: =IF(Table267895[[#This Row],[Date]]="","",MONTH(B65)) ->  | E65: =IF(Table267895[[#This Row],[Date]]="","enter data","") -> enter data | J65: 0 | K65: =-Table267895[[#This Row],[Expense]]+Table267895[[#This Row],[Incomes]]+K64 -> 992
A66: =A65+1 -> 62 | C66: =IF(Table267895[[#This Row],[Date]]="","",MONTH(B66)) ->  | E66: =IF(Table267895[[#This Row],[Date]]="","enter data","") -> enter data | J66: 0 | K66: =-Table267895[[#This Row],[Expense]]+Table267895[[#This Row],[Incomes]]+K65 -> 992
A67: 63 | C67: =IF(Table267895[[#This Row],[Date]]="","",MONTH(B67)) ->  | E67: =IF(Table267895[[#This Row],[Date]]="","enter data","") -> enter data | J67: 0 | K67: =-Table267895[[#This Row],[Expense]]+Table267895[[#This Row],[Incomes]]+K66 -> 992
A68: 64 | C68: =IF(Table267895[[#This Row],[Date]]="","",MONTH(B68)) ->  | E68: =IF(Table267895[[#This Row],[Date]]="","enter data","") -> enter data | J68: 0 | K68: =-Table267895[[#This Row],[Expense]]+Table267895[[#This Row],[Incomes]]+K67 -> 992
A69: 65 | C69: =IF(Table267895[[#This Row],[Date]]="","",MONTH(B69)) ->  | E69: =IF(Table267895[[#This Row],[Date]]="","enter data","") -> enter data | J69: 0 | K69: =-Table267895[[#This Row],[Expense]]+Table267895[[#This Row],[Incomes]]+K68 -> 992
A70: 66 | C70: =IF(Table267895[[#This Row],[Date]]="","",MONTH(B70)) ->  | E70: =IF(Table267895[[#This Row],[Date]]="","enter data","") -> enter data | J70: 0 | K70: =-Table267895[[#This Row],[Expense]]+Table267895[[#This Row],[Incomes]]+K69 -> 992
A71: 67 | C71: =IF(Table267895[[#This Row],[Date]]="","",MONTH(B71)) ->  | E71: =IF(Table267895[[#This Row],[Date]]="","enter data","") -> enter data | J71: 0 | K71: =-Table267895[[#This Row],[Expense]]+Table267895[[#This Row],[Incomes]]+K70 -> 992
A72: 68 | C72: =IF(Table267895[[#This Row],[Date]]="","",MONTH(B72)) ->  | E72: =IF(Table267895[[#This Row],[Date]]="","enter data","") -> enter data | J72: 0 | K72: =-Table267895[[#This Row],[Expense]]+Table267895[[#This Row],[Incomes]]+K71 -> 992
A73: 69 | C73: =IF(Table267895[[#This Row],[Date]]="","",MONTH(B73)) ->  | E73: =IF(Table267895[[#This Row],[Date]]="","enter data","") -> enter data | J73: 0 | K73: =-Table267895[[#This Row],[Expense]]+Table267895[[#This Row],[Incomes]]+K72 -> 992
A74: 70 | C74: =IF(Table267895[[#This Row],[Date]]="","",MONTH(B74)) ->  | E74: =IF(Table267895[[#This Row],[Date]]="","enter data","") -> enter data | J74: 0 | K74: =-Table267895[[#This Row],[Expense]]+Table267895[[#This Row],[Incomes]]+K73 -> 992
A75: 71 | C75: =IF(Table267895[[#This Row],[Date]]="","",MONTH(B75)) ->  | E75: =IF(Table267895[[#This Row],[Date]]="","enter data","") -> enter data | J75: 0 | K75: =-Table267895[[#This Row],[Expense]]+Table267895[[#This Row],[Incomes]]+K74 -> 992
A76: 72 | C76: =IF(Table267895[[#This Row],[Date]]="","",MONTH(B76)) ->  | E76: =IF(Table267895[[#This Row],[Date]]="","enter data","") -> enter data | J76: 0 | K76: =-Table267895[[#This Row],[Expense]]+Table267895[[#This Row],[Incomes]]+K75 -> 992
A77: 73 | C77: =IF(Table267895[[#This Row],[Date]]="","",MONTH(B77)) ->  | E77: =IF(Table267895[[#This Row],[Date]]="","enter data","") -> enter data | J77: 0 | K77: =-Table267895[[#This Row],[Expense]]+Table267895[[#This Row],[Incomes]]+K76 -> 992
A78: 74 | C78: =IF(Table267895[[#This Row],[Date]]="","",MONTH(B78)) ->  | E78: =IF(Table267895[[#This Row],[Date]]="","enter data","") -> enter data | J78: 0 | K78: =-Table267895[[#This Row],[Expense]]+Table267895[[#This Row],[Incomes]]+K77 -> 992
A79: 75 | C79: =IF(Table267895[[#This Row],[Date]]="","",MONTH(B79)) ->  | E79: =IF(Table267895[[#This Row],[Date]]="","enter data","") -> enter data | J79: 0 | K79: =-Table267895[[#This Row],[Expense]]+Table267895[[#This Row],[Incomes]]+K78 -> 992
A80: 76 | C80: =IF(Table267895[[#This Row],[Date]]="","",MONTH(B80)) ->  | E80: =IF(Table267895[[#This Row],[Date]]="","enter data","") -> enter data | J80: 0 | K80: =-Table267895[[#This Row],[Expense]]+Table267895[[#This Row],[Incomes]]+K79 -> 992
A81: 77 | C81: =IF(Table267895[[#This Row],[Date]]="","",MONTH(B81)) ->  | E81: =IF(Table267895[[#This Row],[Date]]="","enter data","") -> enter data | J81: 0 | K81: =-Table267895[[#This Row],[Expense]]+Table267895[[#This Row],[Incomes]]+K80 -> 992
A82: 78 | C82: =IF(Table267895[[#This Row],[Date]]="","",MONTH(B82)) ->  | E82: =IF(Table267895[[#This Row],[Date]]="","enter data","") -> enter data | J82: 0 | K82: =-Table267895[[#This Row],[Expense]]+Table267895[[#This Row],[Incomes]]+K81 -> 992
A83: 79 | C83: =IF(Table267895[[#This Row],[Date]]="","",MONTH(B83)) ->  | E83: =IF(Table267895[[#This Row],[Date]]="","enter data","") -> enter data | J83: 0 | K83: =-Table267895[[#This Row],[Expense]]+Table267895[[#This Row],[Incomes]]+K82 -> 992
A84: 80 | C84: =IF(Table267895[[#This Row],[Date]]="","",MONTH(B84)) ->  | E84: =IF(Table267895[[#This Row],[Date]]="","enter data","") -> enter data | J84: 0 | K84: =-Table267895[[#This Row],[Expense]]+Table267895[[#This Row],[Incomes]]+K83 -> 992
A85: 81 | C85: =IF(Table267895[[#This Row],[Date]]="","",MONTH(B85)) ->  | E85: =IF(Table267895[[#This Row],[Date]]="","enter data","") -> enter data | J85: 0 | K85: =-Table267895[[#This Row],[Expense]]+Table267895[[#This Row],[Incomes]]+K84 -> 992
A86: 82 | C86: =IF(Table267895[[#This Row],[Date]]="","",MONTH(B86)) ->  | E86: =IF(Table267895[[#This Row],[Date]]="","enter data","") -> enter data | J86: 0 | K86: =-Table267895[[#This Row],[Expense]]+Table267895[[#This Row],[Incomes]]+K85 -> 992
A87: 83 | C87: =IF(Table267895[[#This Row],[Date]]="","",MONTH(B87)) ->  | E87: =IF(Table267895[[#This Row],[Date]]="","enter data","") -> enter data | J87: 0 | K87: =-Table267895[[#This Row],[Expense]]+Table267895[[#This Row],[Incomes]]+K86 -> 992
A88: 84 | C88: =IF(Table267895[[#This Row],[Date]]="","",MONTH(B88)) ->  | E88: =IF(Table267895[[#This Row],[Date]]="","enter data","") -> enter data | J88: 0 | K88: =-Table267895[[#This Row],[Expense]]+Table267895[[#This Row],[Incomes]]+K87 -> 992
A89: 85 | C89: =IF(Table267895[[#This Row],[Date]]="","",MONTH(B89)) ->  | E89: =IF(Table267895[[#This Row],[Date]]="","enter data","") -> enter data | J89: 0 | K89: =-Table267895[[#This Row],[Expense]]+Table267895[[#This Row],[Incomes]]+K88 -> 992
A90: 86 | C90: =IF(Table267895[[#This Row],[Date]]="","",MONTH(B90)) ->  | E90: =IF(Table267895[[#This Row],[Date]]="","enter data","") -> enter data | J90: 0 | K90: =-Table267895[[#This Row],[Expense]]+Table267895[[#This Row],[Incomes]]+K89 -> 992
A91: 87 | C91: =IF(Table267895[[#This Row],[Date]]="","",MONTH(B91)) ->  | E91: =IF(Table267895[[#This Row],[Date]]="","enter data","") -> enter data | J91: 0 | K91: =-Table267895[[#This Row],[Expense]]+Table267895[[#This Row],[Incomes]]+K90 -> 992
A92: 88 | C92: =IF(Table267895[[#This Row],[Date]]="","",MONTH(B92)) ->  | E92: =IF(Table267895[[#This Row],[Date]]="","enter data","") -> enter data | J92: 0 | K92: =-Table267895[[#This Row],[Expense]]+Table267895[[#This Row],[Incomes]]+K91 -> 992
A93: 89 | C93: =IF(Table267895[[#This Row],[Date]]="","",MONTH(B93)) ->  | E93: =IF(Table267895[[#This Row],[Date]]="","enter data","") -> enter data | J93: 0 | K93: =-Table267895[[#This Row],[Expense]]+Table267895[[#This Row],[Incomes]]+K92 -> 992
A94: 90 | C94: =IF(Table267895[[#This Row],[Date]]="","",MONTH(B94)) ->  | E94: =IF(Table267895[[#This Row],[Date]]="","enter data","") -> enter data | J94: 0 | K94: =-Table267895[[#This Row],[Expense]]+Table267895[[#This Row],[Incomes]]+K93 -> 992
A95: 91 | C95: =IF(Table267895[[#This Row],[Date]]="","",MONTH(B95)) ->  | E95: =IF(Table267895[[#This Row],[Date]]="","enter data","") -> enter data | J95: 0 | K95: =-Table267895[[#This Row],[Expense]]+Table267895[[#This Row],[Incomes]]+K94 -> 992
A96: 92 | C96: =IF(Table267895[[#This Row],[Date]]="","",MONTH(B96)) ->  | E96: =IF(Table267895[[#This Row],[Date]]="","enter data","") -> enter data | J96: 0 | K96: =-Table267895[[#This Row],[Expense]]+Table267895[[#This Row],[Incomes]]+K95 -> 992
A97: 93 | C97: =IF(Table267895[[#This Row],[Date]]="","",MONTH(B97)) ->  | E97: =IF(Table267895[[#This Row],[Date]]="","enter data","") -> enter data | J97: 0 | K97: =-Table267895[[#This Row],[Expense]]+Table267895[[#This Row],[Incomes]]+K96 -> 992
A98: 94 | C98: =IF(Table267895[[#This Row],[Date]]="","",MONTH(B98)) ->  | E98: =IF(Table267895[[#This Row],[Date]]="","enter data","") -> enter data | J98: 0 | K98: =-Table267895[[#This Row],[Expense]]+Table267895[[#This Row],[Incomes]]+K97 -> 992
A99: 95 | C99: =IF(Table267895[[#This Row],[Date]]="","",MONTH(B99)) ->  | E99: =IF(Table267895[[#This Row],[Date]]="","enter data","") -> enter data | J99: 0 | K99: =-Table267895[[#This Row],[Expense]]+Table267895[[#This Row],[Incomes]]+K98 -> 992
A100: 96 | C100: =IF(Table267895[[#This Row],[Date]]="","",MONTH(B100)) ->  | E100: =IF(Table267895[[#This Row],[Date]]="","enter data","") -> enter data | J100: 0 | K100: =-Table267895[[#This Row],[Expense]]+Table267895[[#This Row],[Incomes]]+K99 -> 992
A101: 97 | C101: =IF(Table267895[[#This Row],[Date]]="","",MONTH(B101)) ->  | E101: =IF(Table267895[[#This Row],[Date]]="","enter data","") -> enter data | J101: 0 | K101: =-Table267895[[#This Row],[Expense]]+Table267895[[#This Row],[Incomes]]+K100 -> 992
A102: 98 | C102: =IF(Table267895[[#This Row],[Date]]="","",MONTH(B102)) ->  | E102: =IF(Table267895[[#This Row],[Date]]="","enter data","") -> enter data | J102: 0 | K102: =-Table267895[[#This Row],[Expense]]+Table267895[[#This Row],[Incomes]]+K101 -> 992
A103: 99 | C103: =IF(Table267895[[#This Row],[Date]]="","",MONTH(B103)) ->  | E103: =IF(Table267895[[#This Row],[Date]]="","enter data","") -> enter data | J103: 0 | K103: =-Table267895[[#This Row],[Expense]]+Table267895[[#This Row],[Incomes]]+K102 -> 992
A104: 100 | C104: =IF(Table267895[[#This Row],[Date]]="","",MONTH(B104)) ->  | E104: =IF(Table267895[[#This Row],[Date]]="","enter data","") -> enter data | J104: 0 | K104: =-Table267895[[#This Row],[Expense]]+Table267895[[#This Row],[Incomes]]+K103 -> 992
A105: 101 | C105: =IF(Table267895[[#This Row],[Date]]="","",MONTH(B105)) ->  | E105: =IF(Table267895[[#This Row],[Date]]="","enter data","") -> enter data | J105: 0 | K105: =-Table267895[[#This Row],[Expense]]+Table267895[[#This Row],[Incomes]]+K104 -> 992
A106: 102 | C106: =IF(Table267895[[#This Row],[Date]]="","",MONTH(B106)) ->  | E106: =IF(Table267895[[#This Row],[Date]]="","enter data","") -> enter data | J106: 0 | K106: =-Table267895[[#This Row],[Expense]]+Table267895[[#This Row],[Incomes]]+K105 -> 992
A107: 103 | C107: =IF(Table267895[[#This Row],[Date]]="","",MONTH(B107)) ->  | E107: =IF(Table267895[[#This Row],[Date]]="","enter data","") -> enter data | J107: 0 | K107: =-Table267895[[#This Row],[Expense]]+Table267895[[#This Row],[Incomes]]+K106 -> 992
A108: 104 | C108: =IF(Table267895[[#This Row],[Date]]="","",MONTH(B108)) ->  | E108: =IF(Table267895[[#This Row],[Date]]="","enter data","") -> enter data | J108: 0 | K108: =-Table267895[[#This Row],[Expense]]+Table267895[[#This Row],[Incomes]]+K107 -> 992
A109: 105 | C109: =IF(Table267895[[#This Row],[Date]]="","",MONTH(B109)) ->  | D109: =IF($C109="","",TEXT(DATE(2000,C109,1),"mmm")) ->  | E109: =IF(Table267895[[#This Row],[Date]]="","enter data","") -> enter data | J109: 0 | K109: =-Table267895[[#This Row],[Expense]]+Table267895[[#This Row],[Incomes]]+K108 -> 992
A110: 106 | C110: =IF(Table267895[[#This Row],[Date]]="","",MONTH(B110)) ->  | E110: =IF(Table267895[[#This Row],[Date]]="","enter data","") -> enter data | J110: 0 | K110: =-Table267895[[#This Row],[Expense]]+Table267895[[#This Row],[Incomes]]+K109 -> 992
A111: 107 | C111: =IF(Table267895[[#This Row],[Date]]="","",MONTH(B111)) ->  | E111: =IF(Table267895[[#This Row],[Date]]="","enter data","") -> enter data | J111: 0 | K111: =-Table267895[[#This Row],[Expense]]+Table267895[[#This Row],[Incomes]]+K110 -> 992
A112: 108 | C112: =IF(Table267895[[#This Row],[Date]]="","",MONTH(B112)) ->  | E112: =IF(Table267895[[#This Row],[Date]]="","enter data","") -> enter data | J112: 0 | K112: =-Table267895[[#This Row],[Expense]]+Table267895[[#This Row],[Incomes]]+K111 -> 992
A113: 109 | C113: =IF(Table267895[[#This Row],[Date]]="","",MONTH(B113)) ->  | E113: =IF(Table267895[[#This Row],[Date]]="","enter data","") -> enter data | J113: =-H113+G113 -> 0 | K113: =-Table267895[[#This Row],[Expense]]+Table267895[[#This Row],[Incomes]]+K112 -> 992
A114: 110 | C114: =IF(Table267895[[#This Row],[Date]]="","",MONTH(B114)) ->  | E114: =IF(Table267895[[#This Row],[Date]]="","enter data","") -> enter data | J114: 0 | K114: =-Table267895[[#This Row],[Expense]]+Table267895[[#This Row],[Incomes]]+K113 -> 992
A115: 111 | C115: =IF(Table267895[[#This Row],[Date]]="","",MONTH(B115)) ->  | E115: =IF(Table267895[[#This Row],[Date]]="","enter data","") -> enter data | J115: 0 | K115: =-Table267895[[#This Row],[Expense]]+Table267895[[#This Row],[Incomes]]+K114 -> 992
A116: 112 | C116: =IF(Table267895[[#This Row],[Date]]="","",MONTH(B116)) ->  | E116: =IF(Table267895[[#This Row],[Date]]="","enter data","") -> enter data | J116: 0 | K116: =-Table267895[[#This Row],[Expense]]+Table267895[[#This Row],[Incomes]]+K115 -> 992
A117: 113 | C117: =IF(Table267895[[#This Row],[Date]]="","",MONTH(B117)) ->  | E117: =IF(Table267895[[#This Row],[Date]]="","enter data","") -> enter data | J117: 0 | K117: =-Table267895[[#This Row],[Expense]]+Table267895[[#This Row],[Incomes]]+K116 -> 992
A118: 114 | C118: =IF(Table267895[[#This Row],[Date]]="","",MONTH(B118)) ->  | E118: =IF(Table267895[[#This Row],[Date]]="","enter data","") -> enter data | J118: 0 | K118: =-Table267895[[#This Row],[Expense]]+Table267895[[#This Row],[Incomes]]+K117 -> 992
A119: 115 | C119: =IF(Table267895[[#This Row],[Date]]="","",MONTH(B119)) ->  | E119: =IF(Table267895[[#This Row],[Date]]="","enter data","") -> enter data | J119: 0 | K119: =-Table267895[[#This Row],[Expense]]+Table267895[[#This Row],[Incomes]]+K118 -> 992
A120: 116 | C120: =IF(Table267895[[#This Row],[Date]]="","",MONTH(B120)) ->  | E120: =IF(Table267895[[#This Row],[Date]]="","enter data","") -> enter data | J120: 0 | K120: =-Table267895[[#This Row],[Expense]]+Table267895[[#This Row],[Incomes]]+K119 -> 992
A121: 117 | C121: =IF(Table267895[[#This Row],[Date]]="","",MONTH(B121)) ->  | E121: =IF(Table267895[[#This Row],[Date]]="","enter data","") -> enter data | J121: 0 | K121: =-Table267895[[#This Row],[Expense]]+Table267895[[#This Row],[Incomes]]+K120 -> 992
A122: 118 | C122: =IF(Table267895[[#This Row],[Date]]="","",MONTH(B122)) ->  | E122: =IF(Table267895[[#This Row],[Date]]="","enter data","") -> enter data | J122: 0 | K122: =-Table267895[[#This Row],[Expense]]+Table267895[[#This Row],[Incomes]]+K121 -> 992
A123: 119 | C123: =IF(Table267895[[#This Row],[Date]]="","",MONTH(B123)) ->  | E123: =IF(Table267895[[#This Row],[Date]]="","enter data","") -> enter data | J123: 0 | K123: =-Table267895[[#This Row],[Expense]]+Table267895[[#This Row],[Incomes]]+K122 -> 992
A124: 120 | C124: =IF(Table267895[[#This Row],[Date]]="","",MONTH(B124)) ->  | E124: =IF(Table267895[[#This Row],[Date]]="","enter data","") -> enter data | J124: 0 | K124: =-Table267895[[#This Row],[Expense]]+Table267895[[#This Row],[Incomes]]+K123 -> 992
A125: 121 | C125: =IF(Table267895[[#This Row],[Date]]="","",MONTH(B125)) ->  | E125: =IF(Table267895[[#This Row],[Date]]="","enter data","") -> enter data | J125: 0 | K125: =-Table267895[[#This Row],[Expense]]+Table267895[[#This Row],[Incomes]]+K124 -> 992
A126: 122 | C126: =IF(Table267895[[#This Row],[Date]]="","",MONTH(B126)) ->  | E126: =IF(Table267895[[#This Row],[Date]]="","enter data","") -> enter data | J126: 0 | K126: =-Table267895[[#This Row],[Expense]]+Table267895[[#This Row],[Incomes]]+K125 -> 992
A127: 123 | C127: =IF(Table267895[[#This Row],[Date]]="","",MONTH(B127)) ->  | E127: =IF(Table267895[[#This Row],[Date]]="","enter data","") -> enter data | J127: 0 | K127: =-Table267895[[#This Row],[Expense]]+Table267895[[#This Row],[Incomes]]+K126 -> 992
A128: 124 | C128: =IF(Table267895[[#This Row],[Date]]="","",MONTH(B128)) ->  | E128: =IF(Table267895[[#This Row],[Date]]="","enter data","") -> enter data | J128: 0 | K128: =-Table267895[[#This Row],[Expense]]+Table267895[[#This Row],[Incomes]]+K127 -> 992
A129: 125 | C129: =IF(Table267895[[#This Row],[Date]]="","",MONTH(B129)) ->  | E129: =IF(Table267895[[#This Row],[Date]]="","enter data","") -> enter data | J129: 0 | K129: =-Table267895[[#This Row],[Expense]]+Table267895[[#This Row],[Incomes]]+K128 -> 992
A130: =A129+1 -> 126 | C130: =IF(Table267895[[#This Row],[Date]]="","",MONTH(B130)) ->  | E130: =IF(Table267895[[#This Row],[Date]]="","enter data","") -> enter data | J130: 0 | K130: =-Table267895[[#This Row],[Expense]]+Table267895[[#This Row],[Incomes]]+K129 -> 992
A131: 127 | C131: =IF(Table267895[[#This Row],[Date]]="","",MONTH(B131)) ->  | E131: =IF(Table267895[[#This Row],[Date]]="","enter data","") -> enter data | J131: 0 | K131: =-Table267895[[#This Row],[Expense]]+Table267895[[#This Row],[Incomes]]+K130 -> 992
A132: 128 | C132: =IF(Table267895[[#This Row],[Date]]="","",MONTH(B132)) ->  | E132: =IF(Table267895[[#This Row],[Date]]="","enter data","") -> enter data | J132: 0 | K132: =-Table267895[[#This Row],[Expense]]+Table267895[[#This Row],[Incomes]]+K131 -> 992
A133: 129 | C133: =IF(Table267895[[#This Row],[Date]]="","",MONTH(B133)) ->  | E133: =IF(Table267895[[#This Row],[Date]]="","enter data","") -> enter data | J133: 0 | K133: =-Table267895[[#This Row],[Expense]]+Table267895[[#This Row],[Incomes]]+K132 -> 992
A134: 130 | C134: =IF(Table267895[[#This Row],[Date]]="","",MONTH(B134)) ->  | E134: =IF(Table267895[[#This Row],[Date]]="","enter data","") -> enter data | J134: 0 | K134: =-Table267895[[#This Row],[Expense]]+Table267895[[#This Row],[Incomes]]+K133 -> 992
A135: 131 | C135: =IF(Table267895[[#This Row],[Date]]="","",MONTH(B135)) ->  | E135: =IF(Table267895[[#This Row],[Date]]="","enter data","") -> enter data | J135: 0 | K135: =-Table267895[[#This Row],[Expense]]+Table267895[[#This Row],[Incomes]]+K134 -> 992
A136: 132 | C136: =IF(Table267895[[#This Row],[Date]]="","",MONTH(B136)) ->  | E136: =IF(Table267895[[#This Row],[Date]]="","enter data","") -> enter data | J136: 0 | K136: =-Table267895[[#This Row],[Expense]]+Table267895[[#This Row],[Incomes]]+K135 -> 992
A137: 133 | C137: =IF(Table267895[[#This Row],[Date]]="","",MONTH(B137)) ->  | E137: =IF(Table267895[[#This Row],[Date]]="","enter data","") -> enter data | J137: 0 | K137: =-Table267895[[#This Row],[Expense]]+Table267895[[#This Row],[Incomes]]+K136 -> 992
A138: 134 | C138: =IF(Table267895[[#This Row],[Date]]="","",MONTH(B138)) ->  | E138: =IF(Table267895[[#This Row],[Date]]="","enter data","") -> enter data | J138: 0 | K138: =-Table267895[[#This Row],[Expense]]+Table267895[[#This Row],[Incomes]]+K137 -> 992
A139: 135 | C139: =IF(Table267895[[#This Row],[Date]]="","",MONTH(B139)) ->  | E139: =IF(Table267895[[#This Row],[Date]]="","enter data","") -> enter data | J139: 0 | K139: =-Table267895[[#This Row],[Expense]]+Table267895[[#This Row],[Incomes]]+K138 -> 992
A140: 136 | C140: =IF(Table267895[[#This Row],[Date]]="","",MONTH(B140)) ->  | E140: =IF(Table267895[[#This Row],[Date]]="","enter data","") -> enter data | J140: 0 | K140: =-Table267895[[#This Row],[Expense]]+Table267895[[#This Row],[Incomes]]+K139 -> 992
A141: 137 | C141: =IF(Table267895[[#This Row],[Date]]="","",MONTH(B141)) ->  | E141: =IF(Table267895[[#This Row],[Date]]="","enter data","") -> enter data | J141: 0 | K141: =-Table267895[[#This Row],[Expense]]+Table267895[[#This Row],[Incomes]]+K140 -> 992
A142: 138 | C142: =IF(Table267895[[#This Row],[Date]]="","",MONTH(B142)) ->  | E142: =IF(Table267895[[#This Row],[Date]]="","enter data","") -> enter data | J142: 0 | K142: =-Table267895[[#This Row],[Expense]]+Table267895[[#This Row],[Incomes]]+K141 -> 992
A143: 139 | C143: =IF(Table267895[[#This Row],[Date]]="","",MONTH(B143)) ->  | E143: =IF(Table267895[[#This Row],[Date]]="","enter data","") -> enter data | J143: 0 | K143: =-Table267895[[#This Row],[Expense]]+Table267895[[#This Row],[Incomes]]+K142 -> 992
A144: 140 | C144: =IF(Table267895[[#This Row],[Date]]="","",MONTH(B144)) ->  | E144: =IF(Table267895[[#This Row],[Date]]="","enter data","") -> enter data | J144: 0 | K144: =-Table267895[[#This Row],[Expense]]+Table267895[[#This Row],[Incomes]]+K143 -> 992
A145: 141 | C145: =IF(Table267895[[#This Row],[Date]]="","",MONTH(B145)) ->  | E145: =IF(Table267895[[#This Row],[Date]]="","enter data","") -> enter data | J145: 0 | K145: =-Table267895[[#This Row],[Expense]]+Table267895[[#This Row],[Incomes]]+K144 -> 992
A146: 142 | C146: =IF(Table267895[[#This Row],[Date]]="","",MONTH(B146)) ->  | E146: =IF(Table267895[[#This Row],[Date]]="","enter data","") -> enter data | J146: 0 | K146: =-Table267895[[#This Row],[Expense]]+Table267895[[#This Row],[Incomes]]+K145 -> 992
A147: 143 | C147: =IF(Table267895[[#This Row],[Date]]="","",MONTH(B147)) ->  | E147: =IF(Table267895[[#This Row],[Date]]="","enter data","") -> enter data | J147: 0 | K147: =-Table267895[[#This Row],[Expense]]+Table267895[[#This Row],[Incomes]]+K146 -> 992
A148: 144 | C148: =IF(Table267895[[#This Row],[Date]]="","",MONTH(B148)) ->  | E148: =IF(Table267895[[#This Row],[Date]]="","enter data","") -> enter data | J148: 0 | K148: =-Table267895[[#This Row],[Expense]]+Table267895[[#This Row],[Incomes]]+K147 -> 992
A149: 145 | C149: =IF(Table267895[[#This Row],[Date]]="","",MONTH(B149)) ->  | E149: =IF(Table267895[[#This Row],[Date]]="","enter data","") -> enter data | J149: 0 | K149: =-Table267895[[#This Row],[Expense]]+Table267895[[#This Row],[Incomes]]+K148 -> 992
A150: 146 | C150: =IF(Table267895[[#This Row],[Date]]="","",MONTH(B150)) ->  | E150: =IF(Table267895[[#This Row],[Date]]="","enter data","") -> enter data | J150: 0 | K150: =-Table267895[[#This Row],[Expense]]+Table267895[[#This Row],[Incomes]]+K149 -> 992
A151: 147 | C151: =IF(Table267895[[#This Row],[Date]]="","",MONTH(B151)) ->  | E151: =IF(Table267895[[#This Row],[Date]]="","enter data","") -> enter data | J151: 0 | K151: =-Table267895[[#This Row],[Expense]]+Table267895[[#This Row],[Incomes]]+K150 -> 992
A152: 148 | C152: =IF(Table267895[[#This Row],[Date]]="","",MONTH(B152)) ->  | E152: =IF(Table267895[[#This Row],[Date]]="","enter data","") -> enter data | J152: 0 | K152: =-Table267895[[#This Row],[Expense]]+Table267895[[#This Row],[Incomes]]+K151 -> 992
A153: 149 | C153: =IF(Table267895[[#This Row],[Date]]="","",MONTH(B153)) ->  | E153: =IF(Table267895[[#This Row],[Date]]="","enter data","") -> enter data | J153: 0 | K153: =-Table267895[[#This Row],[Expense]]+Table267895[[#This Row],[Incomes]]+K152 -> 992
A154: 150 | C154: =IF(Table267895[[#This Row],[Date]]="","",MONTH(B154)) ->  | E154: =IF(Table267895[[#This Row],[Date]]="","enter data","") -> enter data | J154: 0 | K154: =-Table267895[[#This Row],[Expense]]+Table267895[[#This Row],[Incomes]]+K153 -> 992
A155: 151 | C155: =IF(Table267895[[#This Row],[Date]]="","",MONTH(B155)) ->  | E155: =IF(Table267895[[#This Row],[Date]]="","enter data","") -> enter data | J155: 0 | K155: =-Table267895[[#This Row],[Expense]]+Table267895[[#This Row],[Incomes]]+K154 -> 992
A156: 152 | C156: =IF(Table267895[[#This Row],[Date]]="","",MONTH(B156)) ->  | E156: =IF(Table267895[[#This Row],[Date]]="","enter data","") -> enter data | J156: 0 | K156: =-Table267895[[#This Row],[Expense]]+Table267895[[#This Row],[Incomes]]+K155 -> 992
A157: 153 | C157: =IF(Table267895[[#This Row],[Date]]="","",MONTH(B157)) ->  | E157: =IF(Table267895[[#This Row],[Date]]="","enter data","") -> enter data | J157: 0 | K157: =-Table267895[[#This Row],[Expense]]+Table267895[[#This Row],[Incomes]]+K156 -> 992
A158: 154 | C158: =IF(Table267895[[#This Row],[Date]]="","",MONTH(B158)) ->  | E158: =IF(Table267895[[#This Row],[Date]]="","enter data","") -> enter data | J158: 0 | K158: =-Table267895[[#This Row],[Expense]]+Table267895[[#This Row],[Incomes]]+K157 -> 992
A159: 155 | C159: =IF(Table267895[[#This Row],[Date]]="","",MONTH(B159)) ->  | E159: =IF(Table267895[[#This Row],[Date]]="","enter data","") -> enter data | J159: 0 | K159: =-Table267895[[#This Row],[Expense]]+Table267895[[#This Row],[Incomes]]+K158 -> 992
A160: 156 | C160: =IF(Table267895[[#This Row],[Date]]="","",MONTH(B160)) ->  | E160: =IF(Table267895[[#This Row],[Date]]="","enter data","") -> enter data | J160: 0 | K160: =-Table267895[[#This Row],[Expense]]+Table267895[[#This Row],[Incomes]]+K159 -> 992
A161: 157 | C161: =IF(Table267895[[#This Row],[Date]]="","",MONTH(B161)) ->  | E161: =IF(Table267895[[#This Row],[Date]]="","enter data","") -> enter data | J161: 0 | K161: =-Table267895[[#This Row],[Expense]]+Table267895[[#This Row],[Incomes]]+K160 -> 992
A162: 158 | C162: =IF(Table267895[[#This Row],[Date]]="","",MONTH(B162)) ->  | E162: =IF(Table267895[[#This Row],[Date]]="","enter data","") -> enter data | J162: 0 | K162: =-Table267895[[#This Row],[Expense]]+Table267895[[#This Row],[Incomes]]+K161 -> 992
A163: 159 | C163: =IF(Table267895[[#This Row],[Date]]="","",MONTH(B163)) ->  | E163: =IF(Table267895[[#This Row],[Date]]="","enter data","") -> enter data | J163: 0 | K163: =-Table267895[[#This Row],[Expense]]+Table267895[[#This Row],[Incomes]]+K162 -> 992
A164: 160 | C164: =IF(Table267895[[#This Row],[Date]]="","",MONTH(B164)) ->  | E164: =IF(Table267895[[#This Row],[Date]]="","enter data","") -> enter data | J164: 0 | K164: =-Table267895[[#This Row],[Expense]]+Table267895[[#This Row],[Incomes]]+K163 -> 992
A165: 161 | C165: =IF(Table267895[[#This Row],[Date]]="","",MONTH(B165)) ->  | E165: =IF(Table267895[[#This Row],[Date]]="","enter data","") -> enter data | J165: 0 | K165: =-Table267895[[#This Row],[Expense]]+Table267895[[#This Row],[Incomes]]+K164 -> 992
A166: 162 | C166: =IF(Table267895[[#This Row],[Date]]="","",MONTH(B166)) ->  | E166: =IF(Table267895[[#This Row],[Date]]="","enter data","") -> enter data | J166: 0 | K166: =-Table267895[[#This Row],[Expense]]+Table267895[[#This Row],[Incomes]]+K165 -> 992
A167: 163 | C167: =IF(Table267895[[#This Row],[Date]]="","",MONTH(B167)) ->  | E167: =IF(Table267895[[#This Row],[Date]]="","enter data","") -> enter data | J167: 0 | K167: =-Table267895[[#This Row],[Expense]]+Table267895[[#This Row],[Incomes]]+K166 -> 992
A168: 164 | C168: =IF(Table267895[[#This Row],[Date]]="","",MONTH(B168)) ->  | E168: =IF(Table267895[[#This Row],[Date]]="","enter data","") -> enter data | J168: 0 | K168: =-Table267895[[#This Row],[Expense]]+Table267895[[#This Row],[Incomes]]+K167 -> 992
A169: 165 | C169: =IF(Table267895[[#This Row],[Date]]="","",MONTH(B169)) ->  | E169: =IF(Table267895[[#This Row],[Date]]="","enter data","") -> enter data | J169: 0 | K169: =-Table267895[[#This Row],[Expense]]+Table267895[[#This Row],[Incomes]]+K168 -> 992
A170: 166 | C170: =IF(Table267895[[#This Row],[Date]]="","",MONTH(B170)) ->  | E170: =IF(Table267895[[#This Row],[Date]]="","enter data","") -> enter data | J170: 0 | K170: =-Table267895[[#This Row],[Expense]]+Table267895[[#This Row],[Incomes]]+K169 -> 992
A171: 167 | C171: =IF(Table267895[[#This Row],[Date]]="","",MONTH(B171)) ->  | E171: =IF(Table267895[[#This Row],[Date]]="","enter data","") -> enter data | J171: 0 | K171: =-Table267895[[#This Row],[Expense]]+Table267895[[#This Row],[Incomes]]+K170 -> 992
A172: 168 | C172: =IF(Table267895[[#This Row],[Date]]="","",MONTH(B172)) ->  | E172: =IF(Table267895[[#This Row],[Date]]="","enter data","") -> enter data | J172: 0 | K172: =-Table267895[[#This Row],[Expense]]+Table267895[[#This Row],[Incomes]]+K171 -> 992
A173: 169 | C173: =IF(Table267895[[#This Row],[Date]]="","",MONTH(B173)) ->  | D173: =IF($C173="","",TEXT(DATE(2000,C173,1),"mmm")) ->  | E173: =IF(Table267895[[#This Row],[Date]]="","enter data","") -> enter data | J173: 0 | K173: =-Table267895[[#This Row],[Expense]]+Table267895[[#This Row],[Incomes]]+K172 -> 992
A174: 170 | C174: =IF(Table267895[[#This Row],[Date]]="","",MONTH(B174)) ->  | E174: =IF(Table267895[[#This Row],[Date]]="","enter data","") -> enter data | J174: 0 | K174: =-Table267895[[#This Row],[Expense]]+Table267895[[#This Row],[Incomes]]+K173 -> 992
A175: 171 | C175: =IF(Table267895[[#This Row],[Date]]="","",MONTH(B175)) ->  | E175: =IF(Table267895[[#This Row],[Date]]="","enter data","") -> enter data | J175: 0 | K175: =-Table267895[[#This Row],[Expense]]+Table267895[[#This Row],[Incomes]]+K174 -> 992
A176: 172 | C176: =IF(Table267895[[#This Row],[Date]]="","",MONTH(B176)) ->  | E176: =IF(Table267895[[#This Row],[Date]]="","enter data","") -> enter data | J176: 0 | K176: =-Table267895[[#This Row],[Expense]]+Table267895[[#This Row],[Incomes]]+K175 -> 992
A177: 173 | C177: =IF(Table267895[[#This Row],[Date]]="","",MONTH(B177)) ->  | E177: =IF(Table267895[[#This Row],[Date]]="","enter data","") -> enter data | J177: =-H177+G177 -> 0 | K177: =-Table267895[[#This Row],[Expense]]+Table267895[[#This Row],[Incomes]]+K176 -> 992
A178: 174 | C178: =IF(Table267895[[#This Row],[Date]]="","",MONTH(B178)) ->  | E178: =IF(Table267895[[#This Row],[Date]]="","enter data","") -> enter data | J178: 0 | K178: =-Table267895[[#This Row],[Expense]]+Table267895[[#This Row],[Incomes]]+K177 -> 992
A179: 175 | C179: =IF(Table267895[[#This Row],[Date]]="","",MONTH(B179)) ->  | E179: =IF(Table267895[[#This Row],[Date]]="","enter data","") -> enter data | J179: 0 | K179: =-Table267895[[#This Row],[Expense]]+Table267895[[#This Row],[Incomes]]+K178 -> 992
A180: 176 | C180: =IF(Table267895[[#This Row],[Date]]="","",MONTH(B180)) ->  | E180: =IF(Table267895[[#This Row],[Date]]="","enter data","") -> enter data | J180: 0 | K180: =-Table267895[[#This Row],[Expense]]+Table267895[[#This Row],[Incomes]]+K179 -> 992
A181: 177 | C181: =IF(Table267895[[#This Row],[Date]]="","",MONTH(B181)) ->  | E181: =IF(Table267895[[#This Row],[Date]]="","enter data","") -> enter data | J181: 0 | K181: =-Table267895[[#This Row],[Expense]]+Table267895[[#This Row],[Incomes]]+K180 -> 992
A182: 178 | C182: =IF(Table267895[[#This Row],[Date]]="","",MONTH(B182)) ->  | E182: =IF(Table267895[[#This Row],[Date]]="","enter data","") -> enter data | J182: 0 | K182: =-Table267895[[#This Row],[Expense]]+Table267895[[#This Row],[Incomes]]+K181 -> 992
A183: 179 | C183: =IF(Table267895[[#This Row],[Date]]="","",MONTH(B183)) ->  | E183: =IF(Table267895[[#This Row],[Date]]="","enter data","") -> enter data | J183: 0 | K183: =-Table267895[[#This Row],[Expense]]+Table267895[[#This Row],[Incomes]]+K182 -> 992
A184: 180 | C184: =IF(Table267895[[#This Row],[Date]]="","",MONTH(B184)) ->  | E184: =IF(Table267895[[#This Row],[Date]]="","enter data","") -> enter data | J184: 0 | K184: =-Table267895[[#This Row],[Expense]]+Table267895[[#This Row],[Incomes]]+K183 -> 992
A185: 181 | C185: =IF(Table267895[[#This Row],[Date]]="","",MONTH(B185)) ->  | E185: =IF(Table267895[[#This Row],[Date]]="","enter data","") -> enter data | J185: 0 | K185: =-Table267895[[#This Row],[Expense]]+Table267895[[#This Row],[Incomes]]+K184 -> 992
A186: 182 | C186: =IF(Table267895[[#This Row],[Date]]="","",MONTH(B186)) ->  | E186: =IF(Table267895[[#This Row],[Date]]="","enter data","") -> enter data | J186: 0 | K186: =-Table267895[[#This Row],[Expense]]+Table267895[[#This Row],[Incomes]]+K185 -> 992
A187: 183 | C187: =IF(Table267895[[#This Row],[Date]]="","",MONTH(B187)) ->  | E187: =IF(Table267895[[#This Row],[Date]]="","enter data","") -> enter data | J187: 0 | K187: =-Table267895[[#This Row],[Expense]]+Table267895[[#This Row],[Incomes]]+K186 -> 992
A188: 184 | C188: =IF(Table267895[[#This Row],[Date]]="","",MONTH(B188)) ->  | E188: =IF(Table267895[[#This Row],[Date]]="","enter data","") -> enter data | J188: 0 | K188: =-Table267895[[#This Row],[Expense]]+Table267895[[#This Row],[Incomes]]+K187 -> 992
A189: 185 | C189: =IF(Table267895[[#This Row],[Date]]="","",MONTH(B189)) ->  | E189: =IF(Table267895[[#This Row],[Date]]="","enter data","") -> enter data | J189: 0 | K189: =-Table267895[[#This Row],[Expense]]+Table267895[[#This Row],[Incomes]]+K188 -> 992
A190: 186 | C190: =IF(Table267895[[#This Row],[Date]]="","",MONTH(B190)) ->  | E190: =IF(Table267895[[#This Row],[Date]]="","enter data","") -> enter data | J190: 0 | K190: =-Table267895[[#This Row],[Expense]]+Table267895[[#This Row],[Incomes]]+K189 -> 992
A191: 187 | C191: =IF(Table267895[[#This Row],[Date]]="","",MONTH(B191)) ->  | E191: =IF(Table267895[[#This Row],[Date]]="","enter data","") -> enter data | J191: 0 | K191: =-Table267895[[#This Row],[Expense]]+Table267895[[#This Row],[Incomes]]+K190 -> 992
A192: 188 | C192: =IF(Table267895[[#This Row],[Date]]="","",MONTH(B192)) ->  | E192: =IF(Table267895[[#This Row],[Date]]="","enter data","") -> enter data | J192: 0 | K192: =-Table267895[[#This Row],[Expense]]+Table267895[[#This Row],[Incomes]]+K191 -> 992
A193: 189 | C193: =IF(Table267895[[#This Row],[Date]]="","",MONTH(B193)) ->  | E193: =IF(Table267895[[#This Row],[Date]]="","enter data","") -> enter data | J193: 0 | K193: =-Table267895[[#This Row],[Expense]]+Table267895[[#This Row],[Incomes]]+K192 -> 992
A194: =A193+1 -> 190 | C194: =IF(Table267895[[#This Row],[Date]]="","",MONTH(B194)) ->  | E194: =IF(Table267895[[#This Row],[Date]]="","enter data","") -> enter data | J194: 0 | K194: =-Table267895[[#This Row],[Expense]]+Table267895[[#This Row],[Incomes]]+K193 -> 992
A195: 191 | C195: =IF(Table267895[[#This Row],[Date]]="","",MONTH(B195)) ->  | E195: =IF(Table267895[[#This Row],[Date]]="","enter data","") -> enter data | J195: 0 | K195: =-Table267895[[#This Row],[Expense]]+Table267895[[#This Row],[Incomes]]+K194 -> 992
A196: 192 | C196: =IF(Table267895[[#This Row],[Date]]="","",MONTH(B196)) ->  | E196: =IF(Table267895[[#This Row],[Date]]="","enter data","") -> enter data | J196: 0 | K196: =-Table267895[[#This Row],[Expense]]+Table267895[[#This Row],[Incomes]]+K195 -> 992
A197: 193 | C197: =IF(Table267895[[#This Row],[Date]]="","",MONTH(B197)) ->  | E197: =IF(Table267895[[#This Row],[Date]]="","enter data","") -> enter data | J197: 0 | K197: =-Table267895[[#This Row],[Expense]]+Table267895[[#This Row],[Incomes]]+K196 -> 992
A198: 194 | C198: =IF(Table267895[[#This Row],[Date]]="","",MONTH(B198)) ->  | E198: =IF(Table267895[[#This Row],[Date]]="","enter data","") -> enter data | J198: 0 | K198: =-Table267895[[#This Row],[Expense]]+Table267895[[#This Row],[Incomes]]+K197 -> 992
A199: 195 | C199: =IF(Table267895[[#This Row],[Date]]="","",MONTH(B199)) ->  | E199: =IF(Table267895[[#This Row],[Date]]="","enter data","") -> enter data | J199: 0 | K199: =-Table267895[[#This Row],[Expense]]+Table267895[[#This Row],[Incomes]]+K198 -> 992
A200: 196 | C200: =IF(Table267895[[#This Row],[Date]]="","",MONTH(B200)) ->  | E200: =IF(Table267895[[#This Row],[Date]]="","enter data","") -> enter data | J200: 0 | K200: =-Table267895[[#This Row],[Expense]]+Table267895[[#This Row],[Incomes]]+K199 -> 992
... 2778 more rows

Sheet graphics
A3: Row Labels | B3: Sum of Expense | M3: Press Alt F5 to update
A4: Jan | B4: 10
A5: Food | B5: 10
A6: Insurance
A7: Bank
A8: Apr
A9: Entertainment
A10: Food
A11: House
A12: Sport
A14: (blank)
A15: Enter new date
A16: Oct
A17: Entertainment
A18: Food
A19: Sport
A20: blabla
A21: Grand Total | B21: 10
